fUST/lending_fUST_20240909
["ID","MTS","AMOUNT","RATE_DAILY","PERIOD"]
[337559951,1725820240595,-500.0,0.00051956,120]
[337559952,1725820240605,-52924.1535814,0.00051957,6]
[337559953,1725820240615,-17882.77185307,0.00051958,6]
[337559954,1725820240854,-35041.38172833,0.00051958,6]
[337559955,1725820240863,-52924.1535814,0.00051959,6]
[337559956,1725820240872,-34410.23582625,0.0005196,6]
[337559971,1725820243337,-7181.23,0.0005196,6]
[337559972,1725820243349,-334.0510005,0.0005196,6]
[337560054,1725821432679,-300.0,0.00040188,30]
[337560055,1725821432689,-2794.42201147,0.00040189,2]
[337560056,1725821432701,-3296.16999999,0.00040189,2]
[337560109,1725821438640,-18809.40798854,0.00040189,2]
[337560110,1725821438651,-500.70205601,0.00050036,60]
[337560111,1725821438661,-500.0,0.00050198,60]
[337560112,1725821438677,-500.0,0.00051195,60]
[337560113,1725821438687,-302.33493269,0.000517,56]
[337560114,1725821438697,-1159.42742342,0.00051728,28]
[337560115,1725821438706,-221.00523849,0.0005173,2]
[337560116,1725821438716,-341.91107388,0.00051759,2]
[337560117,1725821438725,-473.21000056,0.00051759,120]
[337560118,1725821438735,-206.86,0.0005182,3]
[337560119,1725821438745,-152.92437572,0.00051828,84]
[337560120,1725821438756,-500.0,0.00051828,120]
[337560121,1725821438767,-453.43264722,0.00051828,31]
[337560122,1725821438776,-500.0,0.00051828,120]
[337560123,1725821438785,-500.0,0.00051828,120]
[337560124,1725821438794,-499.79719363,0.00051828,120]
[337560125,1725821438805,-207.53288946,0.00051828,120]
[337560126,1725821438815,-500.0,0.00051828,120]
[337560127,1725821438826,-421.53498224,0.00051828,120]
[337560128,1725821438836,-500.0,0.00051828,120]
[337560129,1725821438846,-500.0,0.00051828,120]
[337560130,1725821438856,-500.0,0.00051828,120]
[337560131,1725821438865,-500.0,0.00051828,120]
[337560132,1725821438875,-500.0,0.00051828,120]
[337560133,1725821438884,-500.0,0.00051828,120]
[337560134,1725821438893,-500.0,0.00051828,120]
[337560135,1725821438903,-450.0,0.00051828,120]
[337560136,1725821438912,-500.0,0.00051828,120]
[337560137,1725821438924,-624.21,0.00051829,120]
[337560138,1725821438935,-766.05,0.00051829,120]
[337560139,1725821438947,-500.0,0.00051829,2]
[337560140,1725821438956,-8566.75080225,0.00051829,61]
[337560141,1725821438967,-183384.330851,0.00051829,6]
[337560142,1725821438976,-69142.73976246,0.00051829,6]
[337560159,1725821440580,-5464.1957838,0.00051829,6]
[337560160,1725821440601,-64681.86737774,0.00051829,6]
[337560161,1725821440611,-500.0,0.00051838,120]
[337560162,1725821440621,-500.0,0.00051838,120]
[337560163,1725821440631,-500.0,0.00051838,120]
[337560164,1725821440640,-500.0,0.00051838,120]
[337560165,1725821440650,-500.0,0.00051838,120]
[337560166,1725821440660,-500.0,0.00051838,120]
[337560167,1725821440669,-500.0,0.00051838,120]
[337560168,1725821440679,-425.4664826,0.00051838,120]
[337560169,1725821440689,-500.0,0.00051838,120]
[337560170,1725821440698,-500.0,0.00051838,120]
[337560171,1725821440708,-500.0,0.00051838,120]
[337560172,1725821440717,-500.0,0.00051838,120]
[337560173,1725821440727,-500.0,0.00051838,120]
[337560174,1725821440736,-500.0,0.00051838,120]
[337560175,1725821440745,-500.0,0.00051838,120]
[337560176,1725821440759,-500.0,0.00051838,120]
[337560177,1725821440769,-200.0,0.00051838,120]
[337560178,1725821440778,-500.0,0.00051838,120]
[337560179,1725821440787,-500.0,0.00051838,120]
[337560180,1725821440798,-500.0,0.00051838,120]
[337560181,1725821440808,-570.63412272,0.00051838,120]
[337560182,1725821440817,-167.24444464,0.00051838,120]
[337560183,1725821440833,-502.39346316,0.00051838,120]
[337560184,1725821440843,-500.0,0.00051838,120]
[337560185,1725821440852,-500.0,0.00051838,120]
[337560186,1725821440862,-500.0,0.00051838,120]
[337560187,1725821440871,-200.0,0.00051838,7]
[337560188,1725821440880,-500.0,0.00051838,120]
[337560189,1725821440890,-500.0,0.00051838,120]
[337560190,1725821440900,-500.0,0.00051838,120]
[337560191,1725821440909,-500.0,0.00051838,120]
[337560192,1725821440919,-500.0,0.00051838,120]
[337560193,1725821440930,-524.17558271,0.00051838,120]
[337560194,1725821440940,-500.0,0.00051838,120]
[337560195,1725821440949,-500.0,0.00051838,120]
[337560196,1725821440959,-500.0,0.00051838,120]
[337560197,1725821440969,-500.0,0.00051838,120]
[337560198,1725821440978,-500.0,0.00051838,120]
[337560199,1725821440987,-500.0,0.00051838,120]
[337560200,1725821440996,-500.0,0.00051838,120]
[337560201,1725821441006,-500.0,0.00051838,120]
[337560202,1725821441016,-500.0,0.00051838,120]
[337560203,1725821441025,-522.16317989,0.00051838,120]
[337560204,1725821441034,-500.0,0.00051838,120]
[337560205,1725821441044,-500.0,0.00051838,120]
[337560206,1725821441054,-500.0,0.00051838,120]
[337560207,1725821441063,-500.0,0.00051838,120]
[337560208,1725821441073,-500.0,0.00051838,120]
[337560209,1725821441083,-500.0,0.00051838,120]
[337560210,1725821441092,-500.0,0.00051838,120]
[337560211,1725821441102,-500.0,0.00051838,120]
[337560212,1725821441111,-2787.85,0.00051838,120]
[337560213,1725821441121,-500.0,0.00051838,120]
[337560214,1725821441130,-500.0,0.00051838,120]
[337560215,1725821441140,-500.0,0.00051838,120]
[337560216,1725821441149,-506.8401281,0.00051838,120]
[337560217,1725821441159,-543.21,0.00051838,120]
[337560218,1725821441168,-1083.31,0.00051838,120]
[337560219,1725821441179,-4377.82,0.00051838,120]
[337560220,1725821441189,-500.0,0.00051838,120]
[337560221,1725821441198,-500.0,0.00051838,120]
[337560222,1725821441208,-952.47,0.00051838,120]
[337560223,1725821441217,-500.0,0.00051838,120]
[337560224,1725821441226,-500.0,0.00051838,120]
[337560225,1725821441236,-500.0,0.00051838,120]
[337560226,1725821441245,-500.0,0.00051838,120]
[337560227,1725821441254,-500.0,0.00051838,120]
[337560228,1725821441263,-500.0,0.00051838,120]
[337560229,1725821441272,-500.0,0.00051838,120]
[337560230,1725821441281,-500.0,0.00051838,120]
[337560231,1725821441290,-8689.47,0.00051838,120]
[337560232,1725821441299,-582.91,0.00051838,120]
[337560233,1725821441309,-500.0,0.00051838,120]
[337560234,1725821441318,-887.73,0.00051838,120]
[337560235,1725821441328,-500.0,0.00051838,120]
[337560236,1725821441337,-829.31,0.00051838,120]
[337560237,1725821441347,-500.0,0.00051838,120]
[337560238,1725821441357,-1074.27,0.00051838,120]
[337560239,1725821441366,-500.0,0.00051838,120]
[337560240,1725821441375,-500.0,0.00051838,120]
[337560241,1725821441385,-500.0,0.00051838,120]
[337560242,1725821441394,-500.0,0.00051838,120]
[337560243,1725821441404,-523.61,0.00051838,120]
[337560244,1725821441414,-500.0,0.00051838,120]
[337560245,1725821441423,-500.0,0.00051838,120]
[337560246,1725821441432,-500.0,0.00051838,120]
[337560247,1725821441442,-3058.54022403,0.00051838,120]
[337560257,1725821443667,-3212.05977597,0.00051838,120]
[337560258,1725821443677,-274.48571349,0.00051838,120]
[337560374,1725822632778,-665.9504022,0.00035565,2]
[337560376,1725822632788,-400.0,0.00035756,2]
[337560378,1725822632798,-1660.43895491,0.00035757,2]
[337560381,1725822632829,-5350.0,0.00035757,2]
[337560383,1725822632842,-622.11384583,0.00035757,2]
[337560384,1725822632856,-6652.17199174,0.00035757,2]
[337560421,1725822637757,-8741.69522302,0.00035757,2]
[337560423,1725822637766,-250.0,0.0003599,2]
[337560425,1725822637776,-250.0,0.00036089,2]
[337560427,1725822637786,-250.0,0.00036187,2]
[337560429,1725822637796,-250.0,0.00036286,2]
[337560431,1725822637806,-250.0,0.00036385,2]
[337560433,1725822637816,-250.0,0.00036483,2]
[337560435,1725822637826,-250.0,0.00036582,2]
[337560438,1725822637836,-250.0,0.00036681,2]
[337560440,1725822637847,-250.0,0.0003678,2]
[337560442,1725822637857,-250.0,0.00036878,2]
[337560444,1725822637867,-250.0,0.00036977,2]
[337560446,1725822637877,-250.0,0.00037076,2]
[337560448,1725822637887,-250.0,0.00037174,2]
[337560450,1725822637897,-250.0,0.00037273,2]
[337560451,1725822637906,-250.0,0.00037372,2]
[337560453,1725822637916,-250.0,0.0003747,2]
[337560455,1725822637926,-250.0,0.00037569,2]
[337560457,1725822637936,-250.0,0.00037668,2]
[337560459,1725822637946,-250.0,0.00037767,2]
[337560461,1725822637956,-250.0,0.00037865,2]
[337560463,1725822637966,-150.0,0.00039294,2]
[337560464,1725822637975,-560.0,0.00039331,30]
[337560466,1725822637985,-6166.81057197,0.00040563,7]
[337560469,1725822637995,-1267.74118466,0.00050866,28]
[337560471,1725822638006,-500.0,0.00050966,60]
[337560472,1725822638015,-500.0,0.00051552,60]
[337560474,1725822638025,-112.84933455,0.00051619,120]
[337560477,1725822638037,-887.15066545,0.00051619,120]
[337560479,1725822638047,-332.75978064,0.00051628,2]
[337560480,1725822638056,-762.47,0.00051699,120]
[337560482,1725822638067,-56325.6991459,0.00051699,6]
[337560484,1725822638077,-500.0,0.000517,120]
[337560485,1725822638087,-500.0,0.00051708,120]
[337560486,1725822638096,-500.0,0.00051708,120]
[337560487,1725822638106,-495.27302262,0.00051708,120]
[337560488,1725822638116,-317.40285305,0.00051708,31]
[337560489,1725822638126,-495.07448757,0.00051708,120]
[337560490,1725822638136,-500.0,0.00051708,120]
[337560491,1725822638148,-500.0,0.00051708,120]
[337560492,1725822638158,-500.0,0.00051708,120]
[337560493,1725822638167,-500.0,0.00051708,120]
[337560494,1725822638177,-500.0,0.00051708,120]
[337560495,1725822638186,-314.85803554,0.00051708,120]
[337560496,1725822638196,-500.0,0.00051708,120]
[337560497,1725822638205,-10206.35222931,0.00051709,6]
[337560498,1725822638218,-46119.34691659,0.00051709,6]
[337560499,1725822638227,-2787.85,0.00051709,120]
[337560500,1725822638237,-4377.82,0.00051709,120]
[337560501,1725822638247,-1083.31,0.00051709,120]
[337560502,1725822638257,-952.47,0.00051709,120]
[337560503,1725822638266,-500.0,0.00051709,120]
[337560504,1725822638275,-293.13696532,0.00051709,120]
[337560505,1725822638287,-289.77303468,0.00051709,120]
[337560506,1725822638297,-8689.47,0.00051709,120]
[337560507,1725822638306,-829.31,0.00051709,120]
[337560508,1725822638316,-887.73,0.00051709,120]
[337560509,1725822638326,-1074.27,0.00051709,120]
[337560510,1725822638336,-523.61,0.00051709,120]
[337560511,1725822638346,-6136.76,0.00051709,120]
[337560512,1725822638356,-500.0,0.00051709,2]
[337560513,1725822638366,-5547.65,0.00051709,120]
[337560514,1725822638375,-56438.86052122,0.00051709,120]
[337560526,1725822639843,-743.89,0.00051709,120]
[337560527,1725822639855,-1233.7401833,0.00051709,120]
[337560528,1725822639896,-535.72,0.00051709,120]
[337560529,1725822639910,-30679.67929548,0.00051709,120]
[337560530,1725822639921,-96011.60571011,0.00051717,6]
[337560575,1725823719407,20157.17533155,0.00014,4]
[337560588,1725823831907,-196.509037,0.00037194,2]
[337560589,1725823831919,-360.0,0.00037617,2]
[337560590,1725823831930,-34.15438723,0.00037617,2]
[337560626,1725823837940,-265.84561277,0.00037617,2]
[337560627,1725823837951,-6180.9937688,0.00037618,2]
[337560628,1725823837960,-278.95827,0.00039193,2]
[337560629,1725823837972,-278.95827,0.00039203,2]
[337560630,1725823837982,-278.95827,0.00039213,2]
[337560631,1725823837993,-278.95827,0.00039224,2]
[337560632,1725823838004,-278.95827,0.00039234,2]
[337560633,1725823838017,-278.95827,0.00039244,2]
[337560634,1725823838027,-278.95827,0.00039254,2]
[337560635,1725823838039,-278.95827,0.00039265,2]
[337560636,1725823838049,-278.95827,0.00039275,2]
[337560637,1725823838059,-278.95827,0.00039285,2]
[337560638,1725823838069,-278.95827,0.00039296,2]
[337560639,1725823838079,-278.95827,0.00039306,2]
[337560640,1725823838089,-278.95827,0.00039316,2]
[337560641,1725823838098,-278.95827,0.00039327,2]
[337560642,1725823838108,-278.95827,0.00039337,2]
[337560643,1725823838116,-278.95827,0.00039347,2]
[337560644,1725823838127,-278.95827,0.00039358,2]
[337560645,1725823838137,-278.95827,0.00039368,2]
[337560646,1725823838147,-278.95827,0.00039378,2]
[337560647,1725823838157,-278.95827,0.00039388,2]
[337560648,1725823838167,-24890.0,0.00039693,2]
[337560649,1725823838177,-1254.20196454,0.000509,28]
[337560650,1725823838187,-1000.0,0.00051,120]
[337560651,1725823838196,-500.0,0.00051268,60]
[337560652,1725823838206,-302.33493269,0.00051458,54]
[337560653,1725823838216,-473.21000056,0.00051479,120]
[337560654,1725823838227,-299.48380263,0.00051526,2]
[337560655,1725823838238,-358.2117913,0.00051557,31]
[337560656,1725823838248,-558.95098268,0.00051557,120]
[337560657,1725823838258,-500.0,0.00051557,120]
[337560658,1725823838268,-500.0,0.00051557,120]
[337560659,1725823838278,-500.0,0.00051557,120]
[337560660,1725823838289,-500.0,0.00051557,120]
[337560661,1725823838298,-500.0,0.00051557,120]
[337560662,1725823838308,-623.01263597,0.00051557,120]
[337560663,1725823838321,-500.0,0.00051557,120]
[337560664,1725823838331,-500.0,0.00051557,120]
[337560665,1725823838340,-610.43549592,0.00051557,120]
[337560666,1725823838351,-300.0,0.00051557,120]
[337560667,1725823838361,-1085.28,0.00051558,120]
[337560668,1725823838370,-500.0,0.00051558,120]
[337560669,1725823838380,-8471.05,0.00051558,120]
[337560670,1725823838390,-871.58,0.00051558,120]
[337560671,1725823838401,-756.71,0.00051558,120]
[337560672,1725823838411,-500.0,0.00051558,120]
[337560673,1725823838422,-1051.11,0.00051558,120]
[337560674,1725823838434,-766.05,0.00051558,120]
[337560675,1725823838443,-500.0,0.00051558,120]
[337560676,1725823838455,-500.0,0.00051558,120]
[337560677,1725823838464,-500.0,0.00051558,120]
[337560678,1725823838474,-500.0,0.00051558,120]
[337560679,1725823838485,-522.63,0.00051558,120]
[337560680,1725823838495,-62159.8836057,0.00051558,6]
[337560681,1725823838505,-60501.4102298,0.00051558,6]
[337560682,1725823838516,-226.99648656,0.00051565,120]
[337560683,1725823838527,-2818.73,0.00051567,120]
[337560684,1725823838539,-4481.13,0.00051567,120]
[337560685,1725823838549,-949.08,0.00051567,120]
[337560686,1725823838559,-558.63,0.00051567,120]
[337560687,1725823838568,-794.75,0.00051567,120]
[337560688,1725823838778,-5881.06,0.00051567,120]
[337560689,1725823838788,-5316.5,0.00051567,120]
[337560690,1725823838798,-1127.9,0.00051567,120]
[337560691,1725823838808,-500.0,0.00051568,120]
[337560692,1725823838818,-712.89,0.00051568,120]
[337560693,1725823838828,-500.0,0.00051568,120]
[337560694,1725823838838,-1898.04,0.00051568,120]
[337560695,1725823838857,-2844.87,0.00051568,120]
[337560696,1725823838871,-500.0,0.00051568,120]
[337560697,1725823838882,-683.27,0.00051568,120]
[337560698,1725823838892,-1547.57,0.00051568,120]
[337560699,1725823838903,-500.0,0.00051568,120]
[337560700,1725823838913,-500.0,0.00051568,120]
[337560701,1725823838924,-500.0,0.00051568,120]
[337560702,1725823838935,-500.0,0.00051568,120]
[337560703,1725823838946,-500.0,0.00051568,120]
[337560704,1725823838957,-923.3,0.00051568,120]
[337560705,1725823838967,-3497.92,0.00051568,120]
[337560706,1725823838977,-500.0,0.00051568,120]
[337560707,1725823838987,-157.623732,0.00051568,120]
[337560708,1725823838999,-157.623732,0.00051568,120]
[337560709,1725823839010,-157.623732,0.00051568,120]
[337560710,1725823839021,-500.0,0.00051568,120]
[337560711,1725823839031,-157.623732,0.00051568,120]
[337560712,1725823839045,-157.623732,0.00051568,120]
[337560713,1725823839055,-157.623732,0.00051568,120]
[337560714,1725823839065,-544.44,0.00051568,120]
[337560715,1725823839075,-151.0,0.00051568,120]
[337560716,1725823839085,-151.0,0.00051568,120]
[337560717,1725823839095,-151.0,0.00051568,120]
[337560718,1725823839105,-500.0,0.00051568,60]
[337560719,1725823839116,-62159.8836057,0.00051568,6]
[337560720,1725823839127,-16564.67499951,0.00051568,6]
[337560726,1725823840043,-151.0,0.00051568,120]
[337560727,1725823840053,-151.0,0.00051568,120]
[337560728,1725823840063,-43936.73523029,0.00051568,6]
[337560729,1725823840074,-1681.31452735,0.00051568,61]
[337560730,1725823840084,-22954.92015114,0.00051568,61]
[337560731,1725823840094,-124319.767211,0.00051569,6]
[337560732,1725823840104,-121002.82046,0.00051569,6]
[337560733,1725823840114,-500.0,0.00051578,120]
[337560734,1725823840124,-1352.31,0.00051578,120]
[337560735,1725823840134,-1466.21,0.00051578,120]
[337560736,1725823840145,-500.0,0.00051578,120]
[337560737,1725823840155,-271.16798836,0.00051578,120]
[337560738,1725823840166,-24110.79,0.00051578,120]
[337560739,1725823840176,-1480.09,0.00051578,21]
[337560740,1725823840186,-2002.0,0.00051578,120]
[337560741,1725823840197,-2162.06,0.00051578,120]
[337560742,1725823840207,-500.0,0.00051578,120]
[337560743,1725823840222,-500.0,0.00051578,120]
[337560744,1725823840235,-500.0,0.00051578,120]
[337560745,1725823840246,-500.0,0.00051578,120]
[337560746,1725823840256,-717.56,0.00051578,120]
[337560747,1725823840267,-670.15,0.00051578,120]
[337560748,1725823840278,-500.0,0.00051578,120]
[337560749,1725823840290,-500.0,0.00051578,120]
[337560750,1725823840300,-500.0,0.00051578,120]
[337560751,1725823840314,-994.22,0.00051578,120]
[337560752,1725823840324,-1245.69,0.00051578,120]
[337560753,1725823840335,-615.84,0.00051578,120]
[337560754,1725823840347,-1365.01,0.00051578,120]
[337560755,1725823840359,-500.0,0.00051578,120]
[337560756,1725823840370,-500.0,0.00051578,120]
[337560757,1725823840380,-88888.0,0.00051579,120]
[337560758,1725823840392,-151.0,0.00051579,30]
[337560759,1725823840402,-151.0,0.00051579,120]
[337560760,1725823840412,-151.0,0.00051579,120]
[337560761,1725823840422,-157.623732,0.00051579,120]
[337560762,1725823840433,-157.623732,0.00051579,120]
[337560763,1725823840445,-151.0,0.00051579,120]
[337560764,1725823840455,-19450.3921392,0.00051598,6]
[337560765,1725823840474,-1363.80029486,0.00051598,6]
[337560766,1725823840486,-11060.47987231,0.00051598,6]
[337560777,1725823842996,-206.86,0.00051549,3]
[337560778,1725823843006,-500.0,0.00051558,120]
[337560779,1725823843017,-151.0,0.00051568,120]
[337560780,1725823843027,-297.516246,0.00051568,120]
[337560781,1725823843040,-30285.21129933,0.00051598,6]
[337560782,1725823843051,-60501.4102298,0.00051598,6]
[337560783,1725823843060,-157.623732,0.00051599,120]
[337560784,1725823843070,-157.623732,0.00051599,120]
[337560785,1725823843080,-157.623732,0.00051599,120]
[337560786,1725823843089,-157.623732,0.00051599,120]
[337560787,1725823843099,-290.205603,0.00051599,120]
[337560788,1725823843108,-151.0,0.00051608,30]
[337560789,1725823843119,-151.0,0.00051608,120]
[337560790,1725823843130,-151.0,0.00051608,120]
[337560791,1725823843139,-151.0,0.00051616,120]
[337560792,1725823843150,-151.0,0.00051616,120]
[337560793,1725823843162,-151.0,0.00051616,120]
[337560794,1725823843173,-151.0,0.00051616,120]
[337560795,1725823843183,-151.0,0.00051616,120]
[337560796,1725823843195,-151.0,0.00051616,120]
[337560797,1725823843205,-151.0,0.00051616,120]
[337560798,1725823843214,-154.599534,0.00051616,30]
[337560799,1725823843224,-154.599534,0.00051616,30]
[337560800,1725823843235,-199.463171,0.00051616,14]
[337560801,1725823843246,-199.463171,0.00051616,14]
[337560802,1725823843256,-152.559391,0.00051616,30]
[337560803,1725823843266,-151.0,0.00051616,120]
[337560804,1725823843276,-151.0,0.00051616,120]
[337560805,1725823843286,-151.0,0.00051616,120]
[337560806,1725823843296,-500.0,0.00051617,120]
[337560807,1725823843306,-500.0,0.00051617,120]
[337560808,1725823843319,-500.0,0.00051617,120]
[337560809,1725823843328,-500.0,0.00051617,120]
[337560810,1725823843338,-500.0,0.00051617,120]
[337560811,1725823843348,-500.0,0.00051617,120]
[337560812,1725823843358,-500.0,0.00051617,120]
[337560813,1725823843368,-884.81,0.00051617,30]
[337560814,1725823843380,-500.0,0.00051617,120]
[337560815,1725823843390,-825.27,0.00051617,120]
[337560816,1725823843401,-500.0,0.00051617,120]
[337560817,1725823843411,-500.0,0.00051617,120]
[337560818,1725823843420,-513.66884988,0.00051617,120]
[337560819,1725823843430,-500.0,0.00051617,120]
[337560820,1725823843439,-500.0,0.00051617,120]
[337560821,1725823843449,-500.0,0.00051617,120]
[337560822,1725823843459,-1154.17,0.00051617,120]
[337560823,1725823843468,-500.0,0.00051617,120]
[337560824,1725823843480,-649.37,0.00051617,120]
[337560825,1725823843493,-500.0,0.00051617,120]
[337560826,1725823843504,-500.0,0.00051617,120]
[337560827,1725823843515,-500.0,0.00051617,120]
[337560828,1725823843527,-500.0,0.00051617,120]
[337560829,1725823843538,-543.17633039,0.00051617,120]
[337560830,1725823843551,-500.0,0.00051617,120]
[337560831,1725823843560,-500.0,0.00051617,120]
[337560833,1725823843570,-500.0,0.00051617,120]
[337560834,1725823843580,-1726.25,0.00051617,120]
[337560835,1725823843589,-500.0,0.00051617,120]
[337560836,1725823843598,-774.11,0.00051617,120]
[337560837,1725823843607,-500.0,0.00051617,120]
[337560838,1725823843617,-500.0,0.00051617,120]
[337560839,1725823843626,-1315.58,0.00051617,120]
[337560840,1725823843636,-500.0,0.00051617,120]
[337560841,1725823843646,-500.0,0.00051617,120]
[337560842,1725823843656,-500.0,0.00051617,120]
[337560843,1725823843666,-500.0,0.00051617,120]
[337560844,1725823843676,-500.0,0.00051617,120]
[337560845,1725823843686,-500.0,0.00051617,120]
[337560846,1725823843696,-500.0,0.00051617,120]
[337560847,1725823843705,-500.0,0.00051617,120]
[337560848,1725823843714,-500.0,0.00051617,120]
[337560849,1725823843724,-862.49,0.00051617,120]
[337560850,1725823843735,-500.0,0.00051617,120]
[337560851,1725823843747,-469.87767993,0.00051617,120]
[337560852,1725823843757,-500.0,0.00051617,120]
[337560853,1725823843767,-500.0,0.00051617,120]
[337560854,1725823843777,-500.0,0.00051617,120]
[337560855,1725823843786,-500.0,0.00051617,120]
[337560856,1725823843797,-500.0,0.00051617,120]
[337560857,1725823843807,-500.0,0.00051617,120]
[337560858,1725823843818,-500.0,0.00051617,120]
[337560859,1725823843829,-500.0,0.00051617,120]
[337560860,1725823843840,-500.0,0.00051617,120]
[337560861,1725823843852,-788.18,0.00051617,120]
[337560862,1725823843863,-504.45,0.00051617,120]
[337560863,1725823843873,-1770.8,0.00051617,120]
[337560864,1725823843883,-500.0,0.00051617,120]
[337560865,1725823843892,-500.0,0.00051617,120]
[337560866,1725823843902,-1383.74,0.00051617,120]
[337560867,1725823843911,-294.08259522,0.00051617,120]
[337560877,1725824052285,10000.0,0.0003001,2]
[337560878,1725824068924,1700.0,0.0003001,2]
[337560879,1725824339394,155.0,0.0003001,2]
[337560880,1725824344376,155.0,0.0003001,2]
[337560881,1725824349591,155.0,0.0003001,2]
[337560882,1725824354278,234.55280221,0.0003001,2]
[337560883,1725824402313,5000.0,0.0003001,2]
[337560884,1725824415143,151.0,0.0003,120]
[337560885,1725824507055,302.33493269,0.0002986,16]
[337560895,1725824908582,151.0,0.0003,120]
[337560909,1725824933231,151.0,0.0003,120]
[337560910,1725824950117,-600.0,0.00032655,100]
[337560911,1725824950142,-172.18768887,0.00034521,120]
[337560912,1725824950166,-151.0,0.00035014,120]
[337560913,1725824950188,-188.0,0.00036164,2]
[337560914,1725824950214,-1035.14022393,0.00036479,120]
[337560915,1725824950241,-151.0,0.00036658,120]
[337560916,1725824950264,-151.0,0.00040027,120]
[337560917,1725824950288,-179.9560613,0.00041096,2]
[337560918,1725824950311,-166.66666667,0.00041421,2]
[337560919,1725824950335,-718.41311735,0.00041521,2]
[337560920,1725825023807,151.0,0.0003,120]
[337560937,1725825032091,-151.0,0.00036,120]
[337560938,1725825032102,-2573.10671173,0.00041521,2]
[337560974,1725825040140,-2467.61036082,0.00041521,2]
[337560975,1725825040149,-166.66666667,0.00041547,2]
[337560976,1725825040159,-252.307063,0.00041647,2]
[337560977,1725825040169,-157.4118407,0.00041767,2]
[337560978,1725825040178,-151.0,0.00042,120]
[337560979,1725825040188,-151.0,0.00043315,120]
[337560980,1725825040198,-168.352943,0.00047261,30]
[337560981,1725825040208,-151.0,0.00048,120]
[337560982,1725825040218,-160.0,0.00049625,3]
[337560983,1725825040227,-151.0,0.00049973,120]
[337560984,1725825040237,-1000.0,0.00050055,30]
[337560985,1725825040246,-500.0,0.00050876,60]
[337560986,1725825040255,-160.0,0.00051073,4]
[337560987,1725825040265,-221.00523849,0.00051146,2]
[337560988,1725825040276,-473.21000056,0.00051147,120]
[337560989,1725825040285,-1254.20196454,0.00051156,28]
[337560990,1725825040296,-333.67491,0.00051166,2]
[337560991,1725825040305,-271.0,0.00051236,2]
[337560992,1725825040314,-558.95098268,0.00051236,120]
[337560993,1725825040326,-500.0,0.00051236,120]
[337560994,1725825040334,-500.0,0.00051236,120]
[337560995,1725825040344,-440.21803767,0.00051236,31]
[337560996,1725825040354,-623.01263597,0.00051236,120]
[337560997,1725825040363,-500.0,0.00051236,120]
[337560998,1725825040372,-500.0,0.00051236,120]
[337560999,1725825040382,-500.0,0.00051236,120]
[337561000,1725825040392,-500.0,0.00051236,120]
[337561001,1725825040402,-610.43549592,0.00051236,120]
[337561002,1725825040411,-500.0,0.00051236,120]
[337561003,1725825040421,-400.34185998,0.00051236,120]
[337561004,1725825040443,-99.65814002,0.00051236,120]
[337561005,1725825040452,-500.0,0.00051236,120]
[337561006,1725825040462,-500.0,0.00051236,7]
[337561007,1725825040472,-500.0,0.00051236,120]
[337561008,1725825040481,-500.0,0.00051236,120]
[337561009,1725825040491,-499.24997639,0.00051236,7]